bitfinex/quotes_ETHUSD_20250623
["timestamp","ask_amount","ask_price","bid_price","bid_amount"]
[1750640293558,7.437,2243.2,2242.7,12.11161773]
[1750640293971,7.437,2243.2,2242.9,0.0607]
[1750640294381,2.153,2243.4,2242.9,0.0607]
[1750640294693,7.436,2243.3,2243.1,0.0607]
[1750640294878,7.436,2243.3,2242.8,0.8521]
[1750640294879,7.48048422,2243.3,2242.8,0.8521]
[1750640295280,7.48048422,2243.3,2242.8,0.7914]
[1750640295492,7.48048422,2243.3,2242.9,0.0607]
[1750640296662,7.48048422,2243.3,2242.8,0.7914]
[1750640296663,0.4163534,2243.2,2242.8,0.8521]
[1750640296863,9.54633842,2243.3,2242.9,0.0607]
[1750640297766,0.04448422,2243.2,2242.8,0.8521]
[1750640297965,0.761,2243.8,2243.2,1.3748]
[1750640298201,0.80548422,2244.0,2243.3,12.33351866]
[1750640298359,7.85112688,2243.9,2243.3,12.28894773]
[1750640298565,7.435,2243.9,2243.3,12.73984259]
[1750640298871,7.47948422,2243.9,2243.3,12.73984259]
[1750640299395,7.435,2243.9,2243.5,0.0607]
[1750640299581,7.435,2243.9,2243.3,12.67914259]
[1750640299907,7.435,2244.0,2243.6,0.0607]
[1750640300120,7.435,2244.0,2243.7,0.0607]
[1750640300464,7.435,2244.0,2243.5,1.3513]
[1750640300701,7.434,2244.1,2243.7,0.55]
[1750640300883,0.7825,2244.3,2243.8,0.04456079]
[1750640301210,0.7607,2244.5,2244.0,0.0607]
[1750640301361,7.85011979,2244.4,2243.9,0.8008]
[1750640301563,0.04448422,2244.3,2243.9,0.8615]
[1750640301766,0.7607,2244.9,2244.0,0.0607]
[1750640301997,7.434,2244.7,2244.0,0.10525823]
[1750640302201,0.46062133,2244.6,2244.0,0.10525823]
[1750640302381,0.83394635,2244.6,2244.0,0.0607]
[1750640302799,0.83394635,2244.6,2244.0,0.10525566]
[1750640303003,0.78946213,2244.6,2244.0,0.0607]
[1750640303208,0.83394635,2244.6,2244.0,0.0607]
[1750640304187,7.432,2244.5,2244.0,0.55]
[1750640304388,7.432,2244.5,2244.1,0.0607]
[1750640304586,0.04448422,2244.4,2243.9,0.8008]
[1750640304888,0.82838422,2244.4,2243.9,0.8615]
[1750640305104,1.65442264,2244.4,2243.7,1.3632]
[1750640305614,7.432,2244.3,2243.7,1.3632]
[1750640305919,7.432,2244.3,2243.8,0.0607]
[1750640306717,7.432,2244.3,2243.7,1.3632]
[1750640307016,7.431,2244.3,2243.7,1.3632]
[1750640307320,0.7503,2244.9,2244.2,10.35767728]
[1750640307487,0.7503,2244.9,2244.3,11.14101693]
[1750640307825,0.79478422,2244.9,2244.0,0.8828]
[1750640308515,0.79478422,2244.9,2243.8,0.0607]
[1750640308915,0.79478422,2244.9,2243.8,0.10526016]
[1750640309518,0.41454613,2244.8,2243.8,0.10526016]
[1750640309718,0.04448422,2244.7,2243.8,0.10526016]
[1750640309926,9.574,2244.6,2243.8,12.24420374]
[1750640310233,0.04448422,2244.5,2243.8,12.24420374]
[1750640310615,7.47448422,2244.5,2243.9,0.6107]
[1750640312443,7.47448422,2244.5,2243.9,0.0607]
[1750640312734,7.47448422,2244.5,2243.9,0.10525883]
[1750640312944,7.47448422,2244.5,2243.9,0.0607]
[1750640313799,0.04448422,2244.5,2243.9,0.0607]
[1750640314213,0.04448422,2244.5,2243.9,1.36733037]
[1750640314435,0.04448422,2244.5,2243.9,11.72500765]
[1750640314732,0.04448422,2244.5,2244.0,10.04455885]
[1750640314934,0.04448422,2244.5,2244.1,0.8163]
[1750640315234,2.144,2244.6,2244.2,0.0607]
[1750640315437,2.18848422,2244.6,2244.2,0.0607]
[1750640315936,2.18848422,2244.6,2244.1,0.8163]
[1750640316132,3.15013264,2244.6,2244.1,0.8163]
[1750640316429,3.15013264,2244.6,2244.1,0.877]
[1750640316841,3.15013264,2244.6,2244.1,0.8163]
[1750640317209,0.8098,2244.5,2243.9,0.877]
[1750640317405,0.7785,2244.3,2243.5,1.340001]
[1750640317725,0.04448422,2244.2,2243.4,0.0607]
[1750640318037,2.144,2244.1,2243.5,11.15557728]
[1750640318240,2.144,2244.1,2243.6,0.10526361]
[1750640318448,2.144,2244.1,2243.7,0.0607]
[1750640318619,2.144,2244.2,2243.7,0.0607]
[1750640318801,1.07943422,2244.2,2243.5,11.21627728]
[1750640319006,2.18848422,2244.2,2243.5,0.8586]
[1750640321815,2.18848422,2244.2,2243.5,0.7979]
[1750640323145,12.18848422,2244.2,2243.1,0.0575]
[1750640323341,0.7622,2244.0,2243.1,0.0575]
[1750640323521,1.1622596,2243.9,2243.1,0.0575]
[1750640323945,10.74782061,2243.8,2242.8,0.7967]
[1750640324147,0.04448422,2243.7,2242.9,0.0575]
[1750640324524,9.57,2243.6,2242.9,0.0575]
[1750640324756,0.04448422,2243.5,2242.9,0.0575]
[1750640325050,1.00593264,2243.5,2242.9,0.0575]
[1750640327040,0.7527,2243.4,2242.9,0.0575]
[1750640327212,0.04448422,2243.3,2242.9,0.0575]
[1750640329453,0.04448422,2243.3,2242.8,1.24951081]
[1750640329618,9.571,2243.3,2242.9,0.10208068]
[1750640329823,9.571,2243.3,2243.0,0.0575]
[1750640330049,9.571,2243.3,2242.9,0.0575]
[1750640330452,9.571,2243.3,2242.8,11.24951081]
[1750640330623,9.571,2243.5,2242.9,0.0575]
[1750640331258,0.7956,2244.0,2243.5,0.0575]
[1750640331421,2.145,2244.1,2243.5,0.0575]
[1750640331621,0.04448422,2244.0,2243.5,0.0575]
[1750640331852,0.04448422,2244.0,2243.4,0.7506]
[1750640332259,2.145,2244.2,2243.7,0.8782]
[1750640332422,3.47518422,2244.2,2243.8,0.0575]
[1750640332761,3.47518422,2244.2,2243.5,0.8782]
[1750640334552,3.47518422,2244.2,2243.5,0.8207]
[1750640334756,0.8093,2244.1,2243.3,0.8502]
[1750640334957,0.47293264,2244.0,2243.3,0.8502]
[1750640335333,0.47293264,2244.0,2243.3,0.7927]
[1750640336264,0.47293264,2244.0,2243.3,0.8502]
[1750640337276,0.47293264,2244.0,2243.3,0.7927]
[1750640339161,0.47293264,2244.0,2243.3,0.8502]
[1750640339361,9.568,2243.9,2243.3,0.8502]
[1750640339573,0.04448422,2243.8,2243.3,0.7927]
[1750640339771,0.04448422,2243.8,2243.4,0.0575]
[1750640340386,0.04448422,2243.8,2243.3,11.1949517]
[1750640340387,9.559,2243.7,2243.3,11.1949517]
[1750640340591,9.559,2243.7,2243.4,1.11949517]
[1750640340775,9.559,2243.7,2243.5,0.0575]
[1750640341155,9.559,2243.7,2243.3,0.7927]
[1750640341359,9.559,2243.7,2243.4,0.0575]
[1750640341780,2.136,2243.7,2243.4,0.0575]
[1750640341983,10.0,2244.2,2243.4,1.16981295]
[1750640342188,2.136,2244.4,2244.0,0.0575]
[1750640342368,2.136,2244.4,2243.8,0.0575]
[1750640342693,2.18048422,2244.4,2243.7,10.7718]
[1750640342994,2.136,2244.4,2243.9,0.7727]
[1750640343158,2.136,2244.4,2244.1,0.0575]
[1750640343694,2.136,2244.4,2244.0,0.0575]
[1750640343899,2.136,2244.4,2244.1,0.0575]
[1750640344695,2.136,2244.4,2244.0,0.0575]
[1750640344990,2.136,2244.4,2244.0,0.49644922]
[1750640345158,2.136,2244.4,2244.0,0.04455653]
[1750640345774,2.136,2244.4,2244.1,0.0575]
[1750640345970,2.136,2244.4,2243.9,0.7727]
[1750640346258,2.136,2244.4,2243.9,1.84997]
[1750640347197,2.136,2244.4,2244.0,0.0575]
[1750640347397,2.136,2244.4,2243.9,1.84997]
[1750640348193,0.04448422,2244.3,2244.0,0.0575]
[1750640348993,2.136,2244.4,2244.0,0.0575]
[1750640349199,0.04448422,2244.3,2244.0,0.0575]
[1750640350767,2.136,2244.4,2244.0,0.0575]
[1750640350973,2.136,2244.4,2243.9,0.7807]
[1750640352965,2.136,2244.4,2244.0,0.0575]
[1750640354002,3.17945842,2244.4,2243.9,0.7807]
[1750640354170,0.04448422,2244.3,2243.7,0.8374]
[1750640355679,7.46248422,2244.3,2243.9,0.0581]
[1750640355886,0.04448422,2244.3,2243.8,0.04456247]
[1750640356084,2.135,2244.2,2243.8,10.40223975]
[1750640356284,2.135,2244.2,2243.9,1.11815397]
[1750640356490,2.135,2244.2,2244.0,0.0581]
[1750640356909,7.91,2245.5,2244.2,10.0581]
[1750640357111,9.59648422,2244.9,2244.4,0.0581]
[1750640357397,9.59648422,2244.9,2244.3,0.0445512]
[1750640357398,2.135,2244.9,2244.3,0.0445512]
[1750640357600,9.59648422,2244.9,2244.5,0.0581]
[1750640357919,9.552,2244.9,2244.3,0.0581]
[1750640358141,0.04448422,2244.8,2244.2,0.0581]
[1750640358343,0.7566,2244.7,2244.1,0.7756]
[1750640358623,0.04448422,2244.6,2244.2,0.0581]
[1750640359418,0.04448422,2244.6,2244.1,0.7756]
[1750640359619,0.04448422,2244.6,2244.2,0.0581]
[1750640360120,0.04448422,2244.6,2244.1,1.93383179]
[1750640360475,0.7566,2244.7,2244.2,0.0581]
[1750640360705,0.04448422,2244.6,2244.2,0.0581]
[1750640361218,0.04448422,2244.6,2244.1,1.93383179]
[1750640361424,0.04448422,2244.6,2244.2,0.0581]
[1750640362509,0.04448422,2244.6,2244.1,1.93383179]
[1750640363114,0.04448422,2244.6,2244.2,0.0581]
[1750640363316,0.04448422,2244.6,2244.1,0.8337]
[1750640363627,0.04448422,2244.6,2244.2,0.0581]
[1750640364426,0.04448422,2244.6,2243.9,10.7917]
[1750640364628,0.812,2244.5,2243.8,0.0581]
[1750640364832,2.17948422,2244.4,2243.8,0.0581]
[1750640365030,7.414,2244.3,2243.7,0.7917]
[1750640365360,0.04448422,2244.2,2243.8,0.0581]
[1750640365517,0.04448422,2244.2,2243.7,0.7917]
[1750640366250,0.04448422,2244.2,2243.8,0.0581]
[1750640366453,0.04448422,2244.2,2243.7,0.7917]
[1750640366637,0.04448422,2244.2,2243.8,0.0581]
[1750640366951,0.04448422,2244.2,2243.7,0.7917]
[1750640367307,0.7997,2244.1,2243.5,0.0581]
[1750640367616,0.84418422,2244.1,2243.6,0.0581]
[1750640368552,2.135,2244.0,2243.7,0.0581]
[1750640368855,0.7635,2244.4,2243.8,0.0581]
[1750640369006,2.135,2244.3,2244.0,0.0581]
[1750640369204,2.135,2244.3,2244.1,0.0581]
[1750640369445,2.135,2244.3,2243.9,0.7639]
[1750640369649,2.8985,2244.4,2243.9,0.7639]
[1750640370255,2.8985,2244.4,2244.0,0.0581]
[1750640370468,0.7635,2244.4,2244.0,0.0581]
[1750640370641,2.8895,2244.4,2244.1,0.0581]
[1750640371166,2.8895,2244.4,2244.0,0.04455734]
[1750640371351,2.8895,2244.4,2244.1,0.0581]
[1750640372231,2.8895,2244.4,2244.0,0.49414149]
[1750640372531,2.126,2244.4,2244.1,0.0581]
[1750640372969,2.126,2244.4,2244.0,0.23040761]
[1750640373131,2.126,2244.4,2244.1,0.0581]
[1750640373567,2.126,2244.4,2244.0,0.27496504]
[1750640373749,2.126,2244.4,2244.0,0.23040761]
[1750640373951,2.126,2244.4,2244.0,0.27496561]
[1750640374346,2.17048422,2244.4,2244.1,0.0581]
[1750640376464,2.126,2244.4,2244.1,0.0581]
[1750640377274,2.126,2244.4,2244.0,0.49858266]
[1750640377674,2.126,2244.4,2244.0,0.45402418]
[1750640377992,2.126,2244.4,2244.0,0.0581]
[1750640378202,2.126,2244.4,2243.9,11.12157728]
[1750640378383,2.126,2244.4,2243.9,13.33833847]
[1750640379004,2.126,2244.4,2244.0,0.0581]
[1750640379800,2.126,2244.4,2244.0,0.10265755]
[1750640380003,2.126,2244.4,2244.0,0.04455755]
[1750640380203,2.126,2244.4,2243.9,13.33833847]
[1750640380369,2.126,2244.4,2244.0,0.0581]
[1750640380694,2.126,2244.4,2244.0,0.10265756]
[1750640380858,2.126,2244.4,2244.0,1.49326062]
[1750640381057,2.126,2244.4,2244.0,0.04455756]
[1750640381293,0.04448422,2244.3,2244.0,0.0581]
[1750640381683,0.04448422,2244.3,2243.7,10.7988]
[1750640381872,0.04448422,2244.3,2243.8,0.0581]
[1750640382072,0.04448422,2244.3,2243.1,4.4580277]
[1750640382073,10.35767728,2243.9,2242.8,0.45281081]
[1750640382278,10.0,2243.7,2242.4,0.0581]
[1750640382503,0.7627,2243.4,2242.4,0.0581]
[1750640382785,0.7962,2243.2,2242.4,0.0581]
[1750640382994,0.46194571,2243.1,2242.4,0.0581]
[1750640383205,0.41746149,2243.0,2242.4,0.0581]
[1750640383364,0.04448422,2243.1,2242.4,0.69253774]
[1750640383560,0.04448422,2243.1,2242.7,0.8407]
[1750640383777,0.8207,2243.4,2242.9,10.0577]
[1750640383976,0.04448422,2243.6,2243.2,0.0577]
[1750640385195,0.04448422,2243.6,2242.9,0.62741773]
[1750640385523,0.04448422,2243.6,2242.9,0.0577]
[1750640386087,0.99857942,2243.6,2242.9,0.0577]
[1750640387415,0.04448422,2243.6,2243.0,10.35767728]
[1750640387638,0.04448422,2243.6,2243.2,0.0577]
[1750640387787,0.8207,2243.7,2243.2,0.0577]
[1750640387788,0.86518422,2243.7,2243.2,0.0577]
[1750640387988,0.04448422,2243.7,2243.2,0.04457399]
[1750640388234,0.04448422,2243.7,2243.2,1.25008724]
[1750640388386,0.04448422,2243.7,2243.3,10.41537728]
[1750640388581,0.04448422,2243.7,2243.3,10.35767728]
[1750640388797,0.86668422,2243.9,2243.3,10.35767728]
[1750640389011,0.41562545,2243.8,2243.3,10.35767728]
[1750640389329,0.86668422,2243.9,2243.3,11.65265373]
[1750640389571,0.41560023,2243.8,2243.4,0.0577]
[1750640389730,0.04448422,2243.7,2243.4,0.0577]
[1750640389887,0.04448422,2243.8,2243.4,0.0577]
[1750640392755,0.04448422,2243.8,2243.2,0.0577]
[1750640395945,0.04448422,2243.8,2243.3,11.67827728]
[1750640396110,0.04448422,2244.4,2243.8,0.0577]
[1750640396311,0.8184,2244.9,2244.4,0.0577]
[1750640396492,0.86288422,2245.3,2244.7,0.0577]
[1750640396693,0.41541841,2245.2,2244.9,10.35767728]
[1750640396907,3.738752,2245.8,2245.0,0.0577]
[1750640396908,0.8184,2245.6,2245.0,0.0577]
[1750640397135,0.04448422,2245.5,2245.0,0.0577]
[1750640397506,0.04448422,2245.5,2244.9,10.35767728]
[1750640398525,0.04448422,2245.5,2245.0,0.0577]
[1750640398708,0.04448422,2245.5,2245.0,1.04153773]
[1750640398912,0.04448422,2245.5,2245.0,1.09923773]
[1750640399253,0.04448422,2245.5,2245.1,0.0577]
[1750640400312,0.04448422,2245.5,2245.0,1.04153773]
[1750640400527,10.006,2245.8,2245.1,0.0577]
[1750640400850,0.04448422,2245.7,2245.3,0.0577]
[1750640401450,0.04448422,2245.7,2245.2,0.0577]
[1750640401662,0.7597,2246.5,2245.8,0.0577]
[1750640401950,10.04448422,2246.4,2245.8,10.41537728]
[1750640402151,10.0,2246.4,2245.5,2.398]
[1750640402371,0.7597,2246.2,2245.1,0.0577]
[1750640402526,0.825,2246.0,2245.1,0.0577]
[1750640402718,8.42907662,2245.9,2245.1,0.0577]
[1750640402915,7.97109787,2245.9,2245.1,0.0577]
[1750640403110,8.01558209,2245.9,2245.1,0.0577]
[1750640403846,8.01558209,2245.9,2245.2,0.55]
[1750640403847,7.598,2245.8,2245.2,0.55]
[1750640404028,0.04448422,2245.7,2245.2,0.55]
[1750640404226,0.04448422,2245.7,2245.3,0.0577]
[1750640404816,0.04448422,2245.7,2245.1,0.0577]
[1750640405016,1.08534243,2245.7,2245.1,0.0577]
[1750640405251,0.78,2245.6,2245.1,0.0577]
[1750640405429,0.04448422,2245.5,2245.1,0.0577]
[1750640406254,0.04448422,2245.5,2244.7,0.0577]
[1750640406255,0.753,2245.3,2244.7,0.0577]
[1750640406551,0.753,2245.3,2244.5,10.0577]
[1750640406552,7.63248422,2245.2,2244.5,10.0577]
[1750640406716,7.63248422,2245.2,2244.7,0.0577]
[1750640406918,7.62948422,2245.2,2244.7,0.0577]
[1750640408218,7.62948422,2245.2,2244.6,2.12116773]
[1750640408419,10.0,2245.1,2244.3,0.0577]
[1750640408615,0.04448422,2245.0,2244.3,0.0577]
[1750640408856,17.58,2245.2,2244.6,0.7683]
[1750640409055,0.04448422,2245.1,2244.7,0.55]
[1750640409281,0.753,2245.3,2244.7,0.59454373]
[1750640409431,7.62448422,2245.2,2244.8,0.0577]
[1750640409749,7.62448422,2245.2,2244.8,0.74795203]
[1750640409929,7.62448422,2245.2,2244.9,0.0577]
[1750640410329,0.04448422,2245.2,2244.7,10.90767728]
[1750640410719,0.04448422,2245.2,2244.8,0.0577]
[1750640410949,0.04448422,2245.2,2244.7,10.90767728]
[1750640411119,0.04448422,2245.2,2244.8,0.0577]
[1750640411857,1.80005217,2245.2,2244.7,0.6077]
[1750640412054,1.80005217,2245.2,2244.6,0.826]
[1750640414434,0.03780375,2245.2,2244.6,0.826]
[1750640415784,0.8062,2245.1,2244.7,0.0594]
[1750640415976,0.03112328,2245.0,2244.6,0.7683]
[1750640416273,0.03112328,2245.0,2244.7,0.0594]
[1750640416869,0.03112328,2245.0,2244.6,0.7683]
[1750640417254,0.03112328,2245.0,2244.7,0.0594]
[1750640418048,0.03112328,2245.0,2244.5,0.55]
[1750640418693,0.03112328,2245.0,2244.6,0.0594]
[1750640419184,10.0,2245.2,2244.6,0.0594]
[1750640419490,0.03780375,2245.1,2244.7,0.0594]
[1750640420052,0.03780375,2245.1,2244.6,11.2274375]
[1750640420473,0.03780375,2245.2,2244.6,11.2274375]
[1750640420758,0.03780375,2245.2,2244.7,0.0594]
[1750640421161,0.03780375,2245.2,2244.6,11.2274375]
[1750640421581,0.03780375,2245.2,2244.7,0.51651681]
[1750640421754,0.03780375,2245.2,2244.7,0.0594]
[1750640422083,0.03780375,2245.2,2244.6,11.2274375]
[1750640422284,0.03780375,2245.2,2244.7,0.0594]
[1750640422799,0.03780375,2245.2,2244.6,11.2274375]
[1750640422952,0.03780375,2245.2,2244.8,0.0594]
[1750640423290,7.534,2245.1,2244.8,0.0594]
[1750640423463,0.03780375,2245.0,2244.8,0.0594]
[1750640424703,0.7797,2244.9,2244.4,0.43875065]
[1750640424997,0.7797,2244.9,2244.4,0.0594]
[1750640425302,0.7797,2244.9,2244.5,0.0594]
[1750640425598,0.7797,2244.9,2244.6,0.0594]
[1750640425753,0.41706837,2244.8,2244.4,0.0594]
[1750640425950,7.528,2245.0,2244.6,0.0594]
[1750640426156,0.41701621,2244.9,2244.7,0.0594]
[1750640426394,7.528,2245.0,2244.7,0.0594]
[1750640426597,0.41699068,2244.9,2244.7,0.0594]
[1750640426895,7.56580375,2245.0,2244.6,0.8077]
[1750640427105,0.41699391,2244.9,2244.7,0.0594]
[1750640427256,7.56580375,2245.0,2244.7,0.0594]
[1750640427596,0.41699901,2244.9,2244.6,1.93359241]
[1750640427801,7.56580375,2245.0,2244.7,0.0594]
[1750640427980,0.41696695,2244.9,2244.5,0.55]
[1750640428303,0.41696695,2244.8,2244.7,0.0594]
[1750640428469,1.22627517,2244.8,2244.4,0.51062408]
[1750640428671,0.8093,2244.8,2244.5,0.0594]
[1750640428880,0.8093,2244.8,2244.3,0.0594]
[1750640429101,0.8093,2244.8,2244.4,0.55]
[1750640429324,0.8093,2244.8,2244.5,0.0594]
[1750640429509,0.8093,2244.8,2244.4,0.0594]
[1750640429887,0.8093,2244.8,2244.4,0.50934199]
[1750640430055,0.41694874,2244.7,2244.3,0.55]
[1750640430261,7.519,2244.9,2244.5,0.7687]
[1750640430461,0.41693872,2244.8,2244.6,0.0594]
[1750640430681,0.41694005,2244.7,2244.5,0.7687]
[1750640430915,7.519,2244.9,2244.6,0.0594]
[1750640431123,0.41693687,2244.8,2244.6,0.0594]
[1750640431427,0.03780375,2244.8,2244.3,0.6094]
[1750640431714,0.41703261,2244.7,2244.4,0.0594]
[1750640431923,0.03780375,2244.8,2244.2,0.8205]
[1750640432224,1.24753947,2244.7,2244.1,0.44936199]
[1750640432419,8.3385,2244.7,2244.2,0.0594]
[1750640432630,8.3385,2244.7,2244.2,0.04455414]
[1750640432919,7.508,2244.7,2244.3,0.0594]
[1750640433077,0.7747,2244.9,2244.4,0.0594]
[1750640433279,11.4893279,2245.7,2244.6,0.0594]
[1750640433280,0.4170249,2244.8,2244.6,0.0594]
[1750640433481,7.506,2245.0,2244.6,0.0594]
[1750640433812,0.41702072,2244.9,2244.6,0.0594]
[1750640434023,0.41702072,2244.9,2244.0,4.45628945]
[1750640434024,0.8029,2244.7,2243.9,1.399245]
[1750640434241,0.45516307,2244.6,2244.0,0.0594]
[1750640434516,0.8029,2244.4,2244.0,0.0594]
[1750640434681,0.41735932,2244.3,2243.8,0.7957]
[1750640434882,0.79608245,2244.9,2244.0,0.0594]
[1750640435118,0.79608245,2244.9,2243.9,0.04455754]
[1750640435119,0.7943,2244.7,2244.2,0.55]
[1750640435314,0.41741257,2244.6,2244.2,0.55]
[1750640435522,0.41738128,2244.5,2244.2,0.59455357]
[1750640435693,0.41770485,2244.4,2244.3,0.0594]
[1750640436114,0.41770407,2244.4,2243.9,0.55]
[1750640436319,7.497,2244.5,2244.2,0.0594]
[1750640436508,0.41769687,2244.4,2244.2,0.04455359]
[1750640436685,0.41769687,2244.4,2244.1,0.55]
[1750640436686,7.497,2244.5,2244.3,0.0594]
[1750640436879,0.41751651,2244.4,2244.2,0.0594]
[1750640437083,7.497,2244.5,2244.2,0.0594]
[1750640437304,0.41751947,2244.4,2244.1,0.55]
[1750640437518,0.7943,2244.7,2244.1,0.55]
[1750640437684,7.91051958,2244.6,2244.1,0.55]
[1750640437888,0.41751958,2244.5,2244.2,0.0594]
[1750640438084,0.41751958,2244.4,2244.1,0.55]
[1750640438290,0.7943,2244.7,2244.1,0.55]
[1750640438589,7.90859858,2244.6,2244.2,0.0594]
[1750640438790,0.41759858,2244.5,2244.1,0.55]
[1750640439000,0.41759858,2244.4,2244.2,0.0594]
[1750640439208,7.491,2244.5,2244.2,0.0594]
[1750640439389,0.41746424,2244.4,2244.1,0.55]
[1750640439725,7.49,2244.5,2244.2,0.0594]
[1750640439922,0.41746695,2244.4,2244.1,0.55]
[1750640440228,7.49,2244.5,2244.2,0.0594]
[1750640440524,0.41746494,2244.4,2244.2,0.0594]
[1750640440724,7.49,2244.5,2244.1,0.55]
[1750640440898,0.41751551,2244.4,2244.2,0.0594]
[1750640441098,7.49,2244.5,2244.2,0.0594]
[1750640441329,0.41751575,2244.4,2244.1,0.55]
[1750640441620,7.49,2244.5,2244.2,0.0594]
[1750640441834,0.41751685,2244.4,2244.2,0.0594]
[1750640441991,0.41742742,2244.3,2244.1,0.0594]
[1750640442192,0.03780375,2244.4,2244.1,0.0594]
[1750640442499,0.41745538,2244.3,2244.1,0.0594]
[1750640442695,0.03780375,2244.4,2244.1,0.0594]
[1750640442902,0.41743486,2244.3,2244.1,0.0594]
[1750640443217,0.03780375,2244.4,2243.9,0.55]
[1750640443388,0.41743321,2244.3,2244.0,0.0575]
[1750640443589,0.03780375,2244.4,2244.0,0.0575]
[1750640443822,0.41743334,2244.3,2244.0,0.0575]
[1750640444025,0.03780375,2244.4,2244.0,0.0575]
[1750640444194,0.41744837,2244.3,2244.0,0.0575]
[1750640444402,0.03780375,2244.4,2244.0,0.0575]
[1750640444600,0.41744982,2244.3,2244.0,0.0575]
[1750640444802,0.03780375,2244.4,2244.0,0.0575]
[1750640445011,0.41743186,2244.3,2243.8,0.7957]
[1750640445220,0.03780375,2244.4,2243.8,0.8402611]
[1750640445529,0.03780375,2244.4,2243.9,0.0575]
[1750640445926,0.41722535,2244.3,2243.9,0.0575]
[1750640446132,0.03780375,2244.4,2243.9,0.0575]
[1750640446349,0.41722729,2244.3,2243.8,0.7957]
[1750640446497,0.03780375,2244.4,2243.8,0.7957]
[1750640446934,0.41722946,2244.3,2243.8,2.03280918]
[1750640447134,1.24193398,2244.2,2243.9,0.0575]
[1750640447449,0.8247,2244.2,2243.9,0.0575]
[1750640448720,0.03780375,2244.1,2243.6,0.55]
[1750640449031,0.03780375,2244.1,2243.7,0.0575]
[1750640450110,0.786,2243.8,2242.7,0.0575]
[1750640450324,0.786,2243.6,2242.7,0.0575]
[1750640450527,0.45459213,2243.5,2242.7,0.04457987]
[1750640450702,0.45459213,2243.5,2242.9,0.55]
[1750640450703,0.03780375,2243.5,2242.9,0.55]
[1750640451033,0.03780375,2243.5,2242.7,0.10207967]
[1750640451334,0.03780375,2243.5,2242.8,0.0575]
[1750640452043,0.03780375,2243.5,2243.0,0.0575]
[1750640452222,7.49780375,2243.6,2243.0,0.59457968]
[1750640452528,9.688,2243.7,2243.3,0.0575]
[1750640452735,18.9473,2244.0,2243.4,0.55]
[1750640452909,0.45380201,2243.9,2243.4,0.55]
[1750640453123,0.03780375,2243.9,2243.5,0.0575]
[1750640453330,0.03780375,2243.9,2243.4,0.55]
[1750640453750,0.03780375,2243.9,2243.5,0.0575]
[1750640455243,0.03780375,2243.9,2243.3,0.55]
[1750640455429,10.03780375,2243.9,2243.4,0.0575]
[1750640455631,10.0,2243.9,2243.4,0.0575]
[1750640455830,0.03780375,2243.8,2243.3,0.55]
[1750640456024,0.03780375,2243.8,2243.4,0.0575]
[1750640456252,0.03780375,2243.8,2243.3,0.55]
[1750640456613,0.03780375,2243.8,2243.2,0.8183]
[1750640456614,0.03780375,2243.8,2243.4,0.0575]
[1750640457429,0.7813,2244.0,2243.3,0.65207295]
[1750640457633,7.447,2243.9,2243.6,0.8272]
[1750640457863,7.446,2243.9,2243.7,0.0575]
[1750640458028,7.446,2243.9,2243.6,0.7697]
[1750640458029,7.446,2243.9,2243.6,0.814266]
[1750640458229,17.445,2244.1,2243.7,0.0575]
[1750640459384,17.445,2244.1,2243.8,0.0575]
[1750640459385,7.445,2244.1,2243.8,0.0575]
[1750640459555,10.0,2244.3,2243.7,0.55]
[1750640459759,7.444,2244.1,2243.7,0.55]
[1750640460582,7.444,2244.1,2243.8,0.0575]
[1750640460758,0.03780375,2244.0,2243.6,0.7697]
[1750640461074,0.86870375,2244.0,2243.6,0.0575]
[1750640461765,0.86870375,2244.0,2243.4,0.7591]
[1750640461970,0.86870375,2244.0,2243.4,0.8166]
[1750640467788,0.7835,2243.5,2242.5,0.8768]
[1750640467972,10.7835,2243.3,2242.5,0.8768]
[1750640468284,0.7975,2243.1,2242.5,0.0575]
[1750640468574,0.03780375,2243.0,2242.5,0.0575]
[1750640468782,2.157,2242.9,2242.5,0.0575]
[1750640468947,7.47780375,2242.8,2242.5,0.0575]
[1750640469282,7.47780375,2242.8,2242.3,0.8704]
[1750640469457,7.47780375,2242.8,2242.3,0.8129]
[1750640469658,7.47780375,2242.8,2242.4,0.0575]
[1750640471778,7.47780375,2242.8,2242.3,0.8129]
[1750640471954,7.47780375,2242.8,2242.4,0.0575]
[1750640472364,7.47780375,2242.8,2242.3,0.8129]
[1750640472968,7.47780375,2242.8,2242.4,0.0575]
[1750640474989,9.13676546,2242.8,2242.0,0.0576]
[1750640475287,10.78,2242.7,2242.0,0.7599]
[1750640475490,0.03780375,2242.6,2242.0,0.7599]
[1750640475791,0.7549,2242.5,2241.7,0.0576]
[1750640475985,2.19580375,2242.4,2241.7,0.0576]
[1750640476172,7.442,2242.3,2241.7,0.0576]
[1750640476373,0.03780375,2242.2,2241.7,0.6076]
[1750640476588,0.03780375,2242.2,2241.8,0.0576]
[1750640477370,0.03780375,2242.2,2241.9,1.3552]
[1750640477581,7.442,2242.1,2242.0,0.0576]
[1750640477772,7.442,2242.1,2241.8,0.0576]
[1750640477971,7.442,2242.1,2241.7,1.3552]
[1750640478154,7.442,2242.1,2241.8,0.0576]
[1750640478486,7.443,2242.1,2241.9,0.55]
[1750640478692,7.443,2242.1,2242.0,0.0576]
[1750640478890,7.443,2242.1,2241.7,0.8052]
[1750640479193,7.443,2242.1,2241.8,0.6076]
[1750640480485,7.443,2242.1,2241.8,0.59460218]
[1750640480649,7.442,2242.3,2242.1,0.55]
[1750640480851,7.442,2242.3,2242.2,0.0576]
[1750640481055,7.442,2242.3,2242.1,0.55]
[1750640481391,7.442,2242.3,2242.1,0.6076]
[1750640481587,7.442,2242.3,2242.2,0.0576]
[1750640482192,0.03780375,2242.5,2242.2,0.0576]